[Event "Late-Titled-Tuesday-Blitz-September-05-2023"]
[Site "Chess.com"]
[Date "2023.09.05"]
[Round "9"]
[White "ChessSwole"]
[Black "DTChess"]
[Result "1-0"]
[WhiteElo "2668"]
[BlackElo "2465"]
[TimeControl "180+1"]
[EndTime "15:44:28 PDT"]
[Termination "ChessSwole won by resignation"]

1. d4 {[%clk 0:03:00.9]} 1... Nf6 {[%clk 0:02:57.7]} 2. c4 {[%clk 0:03:00.5]}
2... g6 {[%clk 0:02:57.8]} 3. Nc3 {[%clk 0:02:59]} 3... Bg7 {[%clk 0:02:57.2]}
4. e4 {[%clk 0:02:59.1]} 4... d6 {[%clk 0:02:56.8]} 5. h3 {[%clk 0:02:59.4]}
5... O-O {[%clk 0:02:56.5]} 6. Be3 {[%clk 0:02:59.6]} 6... Nbd7 {[%clk
0:02:56.3]} 7. g4 {[%clk 0:02:57.7]} 7... c5 {[%clk 0:02:55.8]} 8. Nge2 {[%clk
0:02:54.8]} 8... a6 {[%clk 0:02:52.8]} 9. Bg2 {[%clk 0:02:53.8]} 9... Rb8 {[%clk
0:02:50.2]} 10. a4 {[%clk 0:02:49.7]} 10... b6 {[%clk 0:02:47.5]} 11. O-O {[%clk
0:02:47.5]} 11... Bb7 {[%clk 0:02:46.4]} 12. d5 {[%clk 0:02:43.7]} 12... Ne8
{[%clk 0:02:43.1]} 13. f4 {[%clk 0:02:39.4]} 13... Nc7 {[%clk 0:02:42.6]} 14. g5
{[%clk 0:02:19.7]} 14... b5 {[%clk 0:02:41.5]} 15. axb5 {[%clk 0:02:18.4]} 15...
axb5 {[%clk 0:02:41.6]} 16. cxb5 {[%clk 0:02:08.4]} 16... Nb6 {[%clk 0:02:33.9]}
17. b3 {[%clk 0:02:03.9]} 17... Bc8 {[%clk 0:02:29.4]} 18. f5 {[%clk 0:01:58.8]}
18... Bd7 {[%clk 0:02:23.5]} 19. Ra5 {[%clk 0:01:56.3]} 19... Be5 {[%clk
0:02:05.4]} 20. Bf4 {[%clk 0:01:50.1]} 20... f6 {[%clk 0:01:55.3]} 21. Bxe5
{[%clk 0:01:45.6]} 21... fxe5 {[%clk 0:01:55.3]} 22. Ng3 {[%clk 0:01:40.6]}
22... Ra8 {[%clk 0:01:52]} 23. Rxa8 {[%clk 0:01:24.6]} 23... Qxa8 {[%clk
0:01:50.2]} 24. h4 {[%clk 0:01:17.6]} 24... Nxb5 {[%clk 0:01:48.9]} 25. Nce2
{[%clk 0:01:08.6]} 25... Nd4 {[%clk 0:01:47.3]} 26. Nxd4 {[%clk 0:01:08.9]}
26... cxd4 {[%clk 0:01:47.3]} 27. h5 {[%clk 0:01:09.5]} 27... Qa5 {[%clk
0:01:30.8]} 28. hxg6 {[%clk 0:01:04.1]} 28... hxg6 {[%clk 0:01:30.3]} 29. fxg6
{[%clk 0:01:02]} 29... Rxf1+ {[%clk 0:01:30]} 30. Nxf1 {[%clk 0:01:00.7]} 30...
Be8 {[%clk 0:00:20.3]} 31. Qh5 {[%clk 0:00:59.5]} 31... Bxg6 {[%clk 0:00:19.3]}
32. Qxg6+ {[%clk 0:01:00.4]} 32... Kf8 {[%clk 0:00:19.5]} 33. Qh6+ {[%clk
0:00:54.3]} 33... Ke8 {[%clk 0:00:18.5]} 34. g6 {[%clk 0:00:53.4]} 34... Kd7
{[%clk 0:00:17.5]} 35. g7 {[%clk 0:00:53.4]} 1-0

[Event "Late-Titled-Tuesday-Blitz-September-05-2023"]
[Site "Chess.com"]
[Date "2023.09.05"]
[Round "9"]
[White "NotFischer"]
[Black "Good_Knight_Kiss"]
[Result "1-0"]
[WhiteElo "2282"]
[BlackElo "2322"]
[TimeControl "180+1"]
[EndTime "15:44:30 PDT"]
[Termination "NotFischer won by resignation"]

1. e4 {[%clk 0:03:00.9]} 1... c5 {[%clk 0:02:49.1]} 2. Nf3 {[%clk 0:03:00.5]}
2... d6 {[%clk 0:02:48]} 3. d4 {[%clk 0:03:00.4]} 3... cxd4 {[%clk 0:02:43]} 4.
Nxd4 {[%clk 0:03:01.3]} 4... Nf6 {[%clk 0:02:42.3]} 5. Nc3 {[%clk 0:03:01.4]}
5... a6 {[%clk 0:02:42.5]} 6. Bc4 {[%clk 0:03:00.6]} 6... e6 {[%clk 0:02:42.3]}
7. Bb3 {[%clk 0:03:00.3]} 7... Nbd7 {[%clk 0:02:41.3]} 8. O-O {[%clk 0:02:50.5]}
8... Nc5 {[%clk 0:02:40.9]} 9. Qf3 {[%clk 0:02:44.6]} 9... Be7 {[%clk
0:02:35.3]} 10. Qg3 {[%clk 0:02:28.5]} 10... O-O {[%clk 0:02:32.3]} 11. Bh6
{[%clk 0:02:21.4]} 11... Ne8 {[%clk 0:02:32.3]} 12. f4 {[%clk 0:02:07.5]} 12...
Kh8 {[%clk 0:02:28.6]} 13. Bg5 {[%clk 0:02:00]} 13... Nf6 {[%clk 0:01:51.7]} 14.
Qh4 {[%clk 0:01:54.5]} 14... Qc7 {[%clk 0:01:27.7]} 15. Rae1 {[%clk 0:01:48.9]}
15... b5 {[%clk 0:01:23.2]} 16. e5 {[%clk 0:01:40.6]} 16... dxe5 {[%clk
0:01:22.9]} 17. fxe5 {[%clk 0:01:41.5]} 17... Ng8 {[%clk 0:01:22.4]} 18. Re3
{[%clk 0:01:23.9]} 18... Bxg5 {[%clk 0:01:16.5]} 19. Qxg5 {[%clk 0:01:23.5]}
19... h6 {[%clk 0:01:03.9]} 20. Qh5 {[%clk 0:01:21.5]} 20... b4 {[%clk 0:00:55]}
21. Ne4 {[%clk 0:01:19.7]} 21... Nxe4 {[%clk 0:00:52.5]} 22. Rxe4 {[%clk
0:01:20]} 22... Bb7 {[%clk 0:00:49.1]} 23. Ref4 {[%clk 0:01:14.4]} 23... Qc5
{[%clk 0:00:30.3]} 24. Kh1 {[%clk 0:01:12.2]} 24... Rad8 {[%clk 0:00:22.2]} 25.
Nf3 {[%clk 0:00:48.4]} 25... Rd7 {[%clk 0:00:09.3]} 26. Ng5 {[%clk 0:00:47.8]}
26... Qxe5 {[%clk 0:00:04.8]} 27. Nxf7+ {[%clk 0:00:46.1]} 27... Rdxf7 {[%clk
0:00:04.7]} 28. Qxe5 {[%clk 0:00:45.8]} 28... Rxf4 {[%clk 0:00:02.3]} 29. Rxf4
{[%clk 0:00:45.5]} 1-0

[Event "Late-Titled-Tuesday-Blitz-September-05-2023"]
[Site "Chess.com"]
[Date "2023.09.05"]
[Round "9"]
[White "TreinadorBR"]
[Black "Chessbard1972"]
[Result "0-1"]
[WhiteElo "2348"]
[BlackElo "2487"]
[TimeControl "180+1"]
[EndTime "15:44:45 PDT"]
[Termination "Chessbard1972 won by resignation"]

1. e4 {[%clk 0:02:59.3]} 1... c5 {[%clk 0:02:59.4]} 2. Nf3 {[%clk 0:02:49.9]}
2... a6 {[%clk 0:02:59.3]} 3. Nc3 {[%clk 0:02:44.5]} 3... e6 {[%clk 0:02:58.1]}
4. d4 {[%clk 0:02:44.9]} 4... cxd4 {[%clk 0:02:58.1]} 5. Nxd4 {[%clk 0:02:45.8]}
5... Nc6 {[%clk 0:02:58.2]} 6. Be3 {[%clk 0:02:44.8]} 6... Bb4 {[%clk
0:02:57.9]} 7. Be2 {[%clk 0:02:43.3]} 7... Nf6 {[%clk 0:02:57.4]} 8. O-O {[%clk
0:02:38.4]} 8... Bxc3 {[%clk 0:02:56]} 9. bxc3 {[%clk 0:02:37.8]} 9... Nxe4
{[%clk 0:02:56.1]} 10. Nxc6 {[%clk 0:02:35.1]} 10... bxc6 {[%clk 0:02:45.5]} 11.
Qd4 {[%clk 0:02:31.7]} 11... Nf6 {[%clk 0:02:45.3]} 12. Qb4 {[%clk 0:02:29.1]}
12... a5 {[%clk 0:02:39.5]} 13. Qa3 {[%clk 0:02:26.2]} 13... d6 {[%clk
0:02:28.3]} 14. Rfd1 {[%clk 0:02:23.8]} 14... Nd5 {[%clk 0:02:27.9]} 15. c4
{[%clk 0:01:40.1]} 15... Nxe3 {[%clk 0:02:24.9]} 16. Rxd6 {[%clk 0:01:39.9]}
16... Qe7 {[%clk 0:02:18.3]} 17. fxe3 {[%clk 0:01:36.8]} 17... O-O {[%clk
0:02:17.8]} 18. Rad1 {[%clk 0:01:34.7]} 18... Ra7 {[%clk 0:01:58]} 19. Qc5
{[%clk 0:01:14.1]} 19... Rc7 {[%clk 0:01:50.6]} 20. Qxa5 {[%clk 0:01:10.7]}
20... Rb7 {[%clk 0:01:44.4]} 21. Qc5 {[%clk 0:01:01.3]} 21... Bd7 {[%clk
0:01:41.7]} 22. Qd4 {[%clk 0:00:47.6]} 22... Be8 {[%clk 0:01:29]} 23. c5 {[%clk
0:00:45.8]} 23... g6 {[%clk 0:01:22]} 24. Bc4 {[%clk 0:00:43.7]} 24... e5 {[%clk
0:01:17]} 25. Qe4 {[%clk 0:00:33.1]} 25... Kg7 {[%clk 0:01:12.3]} 26. Bb3 {[%clk
0:00:32.8]} 26... f5 {[%clk 0:01:10.7]} 27. Qd3 {[%clk 0:00:31.2]} 27... Bf7
{[%clk 0:01:09.8]} 28. h3 {[%clk 0:00:23.4]} 28... Bxb3 {[%clk 0:01:05.7]} 29.
cxb3 {[%clk 0:00:24.3]} 29... Rf7 {[%clk 0:01:04.9]} 30. Qc4 {[%clk 0:00:22.9]}
30... Qg5 {[%clk 0:01:01.4]} 31. Qc3 {[%clk 0:00:20.3]} 31... Rbe7 {[%clk
0:00:56.9]} 32. Rxc6 {[%clk 0:00:20.4]} 32... Kh6 {[%clk 0:00:56.1]} 33. Rf1
{[%clk 0:00:19.9]} 33... f4 {[%clk 0:00:55.8]} 34. exf4 {[%clk 0:00:19.9]} 34...
exf4 {[%clk 0:00:55.9]} 35. Qf3 {[%clk 0:00:19.3]} 35... Re3 {[%clk 0:00:53.8]}
36. Qf2 {[%clk 0:00:19.5]} 36... Rg3 {[%clk 0:00:50.9]} 37. Rd6 {[%clk
0:00:18.7]} 37... f3 {[%clk 0:00:50]} 38. Qd2 {[%clk 0:00:16.6]} 38... Rxg2+
{[%clk 0:00:45.8]} 39. Kh1 {[%clk 0:00:13.4]} 39... Rxd2 {[%clk 0:00:45.5]} 0-1

[Event "Late-Titled-Tuesday-Blitz-September-05-2023"]
[Site "Chess.com"]
[Date "2023.09.05"]
[Round "9"]
[White "Goryachkina"]
[Black "Djager97"]
[Result "1-0"]
[WhiteElo "2683"]
[BlackElo "2527"]
[TimeControl "180+1"]
[EndTime "15:44:46 PDT"]
[Termination "Goryachkina won by resignation"]

1. e4 {[%clk 0:02:59]} 1... e6 {[%clk 0:03:00.2]} 2. d4 {[%clk 0:02:58.2]} 2...
d5 {[%clk 0:03:01.1]} 3. Bd3 {[%clk 0:02:58]} 3... dxe4 {[%clk 0:03:00.8]} 4.
Bxe4 {[%clk 0:02:58.4]} 4... Nf6 {[%clk 0:03:01.4]} 5. Bf3 {[%clk 0:02:58.8]}
5... c5 {[%clk 0:03:02]} 6. Ne2 {[%clk 0:02:58.6]} 6... Nc6 {[%clk 0:03:02.3]}
7. Be3 {[%clk 0:02:57.4]} 7... e5 {[%clk 0:03:02.4]} 8. Bxc6+ {[%clk 0:02:27.9]}
8... bxc6 {[%clk 0:03:03.3]} 9. c3 {[%clk 0:02:26.5]} 9... cxd4 {[%clk
0:02:31.3]} 10. cxd4 {[%clk 0:02:26.2]} 10... Bb4+ {[%clk 0:02:21.5]} 11. Nbc3
{[%clk 0:02:24.8]} 11... exd4 {[%clk 0:02:08.3]} 12. Bxd4 {[%clk 0:02:17.5]}
12... O-O {[%clk 0:02:04.7]} 13. O-O {[%clk 0:02:16.9]} 13... Be6 {[%clk
0:01:51.3]} 14. Re1 {[%clk 0:02:12.2]} 14... c5 {[%clk 0:01:40]} 15. Be3 {[%clk
0:02:03.8]} 15... Qxd1 {[%clk 0:01:38.3]} 16. Raxd1 {[%clk 0:02:03.5]} 16...
Rfd8 {[%clk 0:01:39.2]} 17. a3 {[%clk 0:02:00.2]} 17... Bxc3 {[%clk 0:01:34.2]}
18. Nxc3 {[%clk 0:02:00.2]} 18... c4 {[%clk 0:01:29.2]} 19. Rxd8+ {[%clk
0:01:59.3]} 19... Rxd8 {[%clk 0:01:28.3]} 20. Bxa7 {[%clk 0:01:59.1]} 20... Nd5
{[%clk 0:01:13.2]} 21. Nxd5 {[%clk 0:01:55.2]} 21... Rxd5 {[%clk 0:01:12.2]} 22.
Be3 {[%clk 0:01:52.1]} 22... Kf8 {[%clk 0:01:03.8]} 23. f3 {[%clk 0:01:50.7]}
23... Ke7 {[%clk 0:01:03]} 24. Kf2 {[%clk 0:01:50.5]} 24... Rd3 {[%clk
0:00:59.3]} 25. a4 {[%clk 0:01:39.5]} 25... c3 {[%clk 0:00:46.6]} 26. bxc3
{[%clk 0:01:36.4]} 26... Rxc3 {[%clk 0:00:47.5]} 27. a5 {[%clk 0:01:36.4]} 27...
Rc2+ {[%clk 0:00:44.6]} 28. Kg3 {[%clk 0:01:36.7]} 28... Ra2 {[%clk 0:00:43.9]}
29. Bc5+ {[%clk 0:01:34.7]} 29... Kf6 {[%clk 0:00:38.1]} 30. Bb6 {[%clk
0:01:29.8]} 30... h5 {[%clk 0:00:37]} 31. h4 {[%clk 0:01:29.4]} 31... Ke7 {[%clk
0:00:29.5]} 32. Rc1 {[%clk 0:01:20.6]} 32... g6 {[%clk 0:00:24.8]} 33. Rg1
{[%clk 0:01:01.7]} 33... Kd6 {[%clk 0:00:23.5]} 34. Kf4 {[%clk 0:01:00.2]} 34...
Ke7 {[%clk 0:00:14]} 35. Kg5 {[%clk 0:00:55.9]} 35... Ra3 {[%clk 0:00:10.7]} 36.
Bc5+ {[%clk 0:00:54.9]} 1-0

[Event "Late-Titled-Tuesday-Blitz-September-05-2023"]
[Site "Chess.com"]
[Date "2023.09.05"]
[Round "9"]
[White "Witik"]
[Black "Ducke13"]
[Result "0-1"]
[WhiteElo "2648"]
[BlackElo "2477"]
[TimeControl "180+1"]
[EndTime "15:44:46 PDT"]
[Termination "Ducke13 won by resignation"]

1. e4 {[%clk 0:02:58.8]} 1... c5 {[%clk 0:02:53.4]} 2. Nf3 {[%clk 0:02:58]} 2...
d6 {[%clk 0:02:53.7]} 3. d4 {[%clk 0:02:57.9]} 3... cxd4 {[%clk 0:02:53.2]} 4.
Nxd4 {[%clk 0:02:58.8]} 4... Nf6 {[%clk 0:02:52.8]} 5. Nc3 {[%clk 0:02:59.2]}
5... a6 {[%clk 0:02:53.3]} 6. Be3 {[%clk 0:02:59.1]} 6... e5 {[%clk 0:02:52.6]}
7. Nf3 {[%clk 0:02:59.4]} 7... Be7 {[%clk 0:02:48.6]} 8. Bc4 {[%clk 0:02:59.2]}
8... Be6 {[%clk 0:02:46.6]} 9. Bxe6 {[%clk 0:02:58.3]} 9... fxe6 {[%clk
0:02:46]} 10. O-O {[%clk 0:02:59]} 10... Nbd7 {[%clk 0:02:34.6]} 11. Ng5 {[%clk
0:02:56.7]} 11... Nf8 {[%clk 0:02:31.4]} 12. f4 {[%clk 0:02:50]} 12... exf4
{[%clk 0:02:25.5]} 13. Bxf4 {[%clk 0:02:49.4]} 13... h6 {[%clk 0:02:22.4]} 14.
Nh3 {[%clk 0:02:43.6]} 14... Ng6 {[%clk 0:02:19.2]} 15. Be3 {[%clk 0:02:42.2]}
15... O-O {[%clk 0:02:13.6]} 16. Kh1 {[%clk 0:02:42.3]} 16... Rc8 {[%clk
0:02:03.9]} 17. a4 {[%clk 0:02:39.5]} 17... Ne5 {[%clk 0:01:54.5]} 18. Nf4
{[%clk 0:02:33.7]} 18... Qd7 {[%clk 0:01:52.4]} 19. Bd4 {[%clk 0:02:19.1]} 19...
Nc6 {[%clk 0:01:22.9]} 20. Ng6 {[%clk 0:02:12.8]} 20... Rf7 {[%clk 0:01:22.7]}
21. e5 {[%clk 0:02:00.9]} 21... dxe5 {[%clk 0:01:06.9]} 22. Bxe5 {[%clk
0:01:52.2]} 22... Nxe5 {[%clk 0:00:57.9]} 23. Nxe5 {[%clk 0:01:50.2]} 23... Qxd1
{[%clk 0:00:55.4]} 24. Raxd1 {[%clk 0:01:51.1]} 24... Rff8 {[%clk 0:00:55.6]}
25. Ng6 {[%clk 0:01:39.2]} 25... Rf7 {[%clk 0:00:52.4]} 26. Rde1 {[%clk
0:01:13.2]} 26... Bb4 {[%clk 0:00:43.2]} 27. Rxe6 {[%clk 0:01:10.4]} 27... Bxc3
{[%clk 0:00:43.1]} 28. bxc3 {[%clk 0:01:08.1]} 28... Rxc3 {[%clk 0:00:42.4]} 29.
h3 {[%clk 0:00:59.9]} 29... Rxc2 {[%clk 0:00:40.3]} 30. Rd1 {[%clk 0:00:51.8]}
30... Kh7 {[%clk 0:00:36.9]} 31. Ne5 {[%clk 0:00:48.7]} 31... Rfc7 {[%clk
0:00:33.6]} 32. a5 {[%clk 0:00:48.6]} 32... Re2 {[%clk 0:00:31.3]} 33. Rdd6
{[%clk 0:00:45.3]} 33... Rc1+ {[%clk 0:00:18.2]} 34. Kh2 {[%clk 0:00:44.7]}
34... Rcc2 {[%clk 0:00:18.9]} 35. Kg3 {[%clk 0:00:40.2]} 35... Ne4+ {[%clk
0:00:17.8]} 36. Kf3 {[%clk 0:00:40.7]} 36... Nxd6 {[%clk 0:00:18.5]} 0-1

[Event "Late-Titled-Tuesday-Blitz-September-05-2023"]
[Site "Chess.com"]
[Date "2023.09.05"]
[Round "9"]
[White "WilsonPalencia21"]
[Black "Sulthankan"]
[Result "1-0"]
[WhiteElo "2548"]
[BlackElo "2373"]
[TimeControl "180+1"]
[EndTime "15:44:48 PDT"]
[Termination "WilsonPalencia21 won by resignation"]

1. d4 {[%clk 0:03:00.9]} 1... Nf6 {[%clk 0:02:59.7]} 2. c4 {[%clk 0:03:00.1]}
2... g6 {[%clk 0:02:52.6]} 3. Nc3 {[%clk 0:02:59.1]} 3... d5 {[%clk 0:02:52.6]}
4. Nf3 {[%clk 0:02:58.6]} 4... Bg7 {[%clk 0:02:52.4]} 5. Bg5 {[%clk 0:02:58.2]}
5... Ne4 {[%clk 0:02:50.2]} 6. cxd5 {[%clk 0:02:58.1]} 6... Nxg5 {[%clk
0:02:49.7]} 7. Nxg5 {[%clk 0:02:59]} 7... e6 {[%clk 0:02:50.4]} 8. Qd2 {[%clk
0:02:58.6]} 8... exd5 {[%clk 0:02:50.1]} 9. Qe3+ {[%clk 0:02:58.6]} 9... Kf8
{[%clk 0:02:49.9]} 10. Qf4 {[%clk 0:02:59]} 10... Bf6 {[%clk 0:02:31.3]} 11. h4
{[%clk 0:02:57.4]} 11... h6 {[%clk 0:02:28.3]} 12. Nf3 {[%clk 0:02:55.7]} 12...
Kg7 {[%clk 0:02:28.7]} 13. e4 {[%clk 0:02:55.1]} 13... c5 {[%clk 0:02:18.7]} 14.
dxc5 {[%clk 0:02:39.4]} 14... dxe4 {[%clk 0:01:57.6]} 15. Nxe4 {[%clk
0:02:38.7]} 15... Bxb2 {[%clk 0:01:57.6]} 16. Bc4 {[%clk 0:02:34.9]} 16... Qe7
{[%clk 0:01:37.7]} 17. Rb1 {[%clk 0:02:23.4]} 17... Bc3+ {[%clk 0:01:21.5]} 18.
Kf1 {[%clk 0:02:20.1]} 18... Ba5 {[%clk 0:01:11.4]} 19. Nd6 {[%clk 0:02:05.7]}
19... Bc7 {[%clk 0:00:56.1]} 20. Qd4+ {[%clk 0:01:54.3]} 20... f6 {[%clk
0:00:54.6]} 21. Nxc8 {[%clk 0:01:50.1]} 21... Rxc8 {[%clk 0:00:50.8]} 22. Rxb7
{[%clk 0:01:44.9]} 22... Nd7 {[%clk 0:00:41.7]} 23. h5 {[%clk 0:01:16.1]} 23...
g5 {[%clk 0:00:36.9]} 24. Qd3 {[%clk 0:01:08.4]} 24... Nf8 {[%clk 0:00:27.9]}
25. c6 {[%clk 0:00:46.1]} 25... Rd8 {[%clk 0:00:20.5]} 26. Qc2 {[%clk
0:00:44.4]} 26... Rac8 {[%clk 0:00:19.2]} 27. g3 {[%clk 0:00:39.8]} 27... a5
{[%clk 0:00:19]} 28. Kg2 {[%clk 0:00:39.3]} 28... Rd6 {[%clk 0:00:18]} 29. Re1
{[%clk 0:00:37.9]} 29... Qd8 {[%clk 0:00:16.9]} 30. Qe4 {[%clk 0:00:34.7]} 30...
Rb8 {[%clk 0:00:10.4]} 31. Qe7+ {[%clk 0:00:32.2]} 31... Qxe7 {[%clk 0:00:10.5]}
32. Rxe7+ {[%clk 0:00:31.7]} 32... Kh8 {[%clk 0:00:11.2]} 33. Rexc7 {[%clk
0:00:30.6]} 1-0

[Event "Late-Titled-Tuesday-Blitz-September-05-2023"]
[Site "Chess.com"]
[Date "2023.09.05"]
[Round "9"]
[White "Schwindle"]
[Black "nitpicker"]
[Result "1-0"]
[WhiteElo "2410"]
[BlackElo "2276"]
[TimeControl "180+1"]
[EndTime "15:44:51 PDT"]
[Termination "Schwindle won on time"]

1. e4 {[%clk 0:03:00.9]} 1... c5 {[%clk 0:02:59.9]} 2. d4 {[%clk 0:02:59.9]}
2... cxd4 {[%clk 0:02:59.3]} 3. c3 {[%clk 0:03:00.6]} 3... dxc3 {[%clk
0:02:58.8]} 4. Nxc3 {[%clk 0:03:01.3]} 4... Nc6 {[%clk 0:02:58.8]} 5. Nf3 {[%clk
0:03:02.2]} 5... d6 {[%clk 0:02:58.5]} 6. Bc4 {[%clk 0:03:02.5]} 6... a6 {[%clk
0:02:58.7]} 7. O-O {[%clk 0:03:02.4]} 7... Nf6 {[%clk 0:02:58.2]} 8. h3 {[%clk
0:03:01]} 8... e6 {[%clk 0:02:53.9]} 9. Qe2 {[%clk 0:03:01.1]} 9... Qc7 {[%clk
0:02:48.2]} 10. Rd1 {[%clk 0:03:00.6]} 10... Bd7 {[%clk 0:02:41]} 11. Bf4 {[%clk
0:03:00.5]} 11... Ne5 {[%clk 0:02:38.5]} 12. Bb3 {[%clk 0:02:57.8]} 12... b5
{[%clk 0:02:30.9]} 13. Rac1 {[%clk 0:02:56.6]} 13... Qb8 {[%clk 0:02:31.4]} 14.
Nxe5 {[%clk 0:02:44.3]} 14... dxe5 {[%clk 0:02:30.8]} 15. Bg5 {[%clk 0:02:44.7]}
15... Be7 {[%clk 0:02:21.2]} 16. Qd3 {[%clk 0:02:31.3]} 16... Qb7 {[%clk
0:02:19.4]} 17. Bxf6 {[%clk 0:02:16.5]} 17... Bxf6 {[%clk 0:02:06.6]} 18. Nd5
{[%clk 0:02:15.7]} 18... Rc8 {[%clk 0:01:20.5]} 19. Nxf6+ {[%clk 0:02:05.4]}
19... gxf6 {[%clk 0:01:20.6]} 20. Qd6 {[%clk 0:01:54]} 20... Rc6 {[%clk
0:00:49.2]} 21. Rxc6 {[%clk 0:01:44.5]} 21... Qxc6 {[%clk 0:00:48.9]} 22. Qd2
{[%clk 0:01:32.9]} 22... h5 {[%clk 0:00:35.1]} 23. Rc1 {[%clk 0:01:14.1]} 23...
Qb6 {[%clk 0:00:28.2]} 24. a4 {[%clk 0:01:03.9]} 24... bxa4 {[%clk 0:00:20.7]}
25. Bxa4 {[%clk 0:01:03.4]} 25... Qb7 {[%clk 0:00:09.1]} 26. Rd1 {[%clk
0:00:44.4]} 26... O-O {[%clk 0:00:02.6]} 27. Qxd7 {[%clk 0:00:43.6]} 27... Qxe4
{[%clk 0:00:02.7]} 28. b3 {[%clk 0:00:28.1]} 28... f5 {[%clk 0:00:02.7]} 29. Qe7
{[%clk 0:00:22.9]} 1-0

[Event "Late-Titled-Tuesday-Blitz-September-05-2023"]
[Site "Chess.com"]
[Date "2023.09.05"]
[Round "9"]
[White "GaiozNigalidze"]
[Black "Mesa_1"]
[Result "1-0"]
[WhiteElo "2781"]
[BlackElo "2625"]
[TimeControl "180+1"]
[EndTime "15:44:53 PDT"]
[Termination "GaiozNigalidze won by resignation"]

1. d4 {[%clk 0:03:00.9]} 1... Nf6 {[%clk 0:02:56.6]} 2. c4 {[%clk 0:02:57.5]}
2... g6 {[%clk 0:02:56.7]} 3. Nc3 {[%clk 0:02:55.7]} 3... Bg7 {[%clk 0:02:56.3]}
4. e4 {[%clk 0:02:56.4]} 4... d6 {[%clk 0:02:56.9]} 5. Nf3 {[%clk 0:02:56.9]}
5... O-O {[%clk 0:02:55.8]} 6. h3 {[%clk 0:02:57.6]} 6... e5 {[%clk 0:02:53.7]}
7. d5 {[%clk 0:02:58]} 7... a5 {[%clk 0:02:52.3]} 8. Bd3 {[%clk 0:02:58.4]} 8...
Na6 {[%clk 0:02:48]} 9. a3 {[%clk 0:02:55.1]} 9... Nd7 {[%clk 0:02:47.5]} 10.
Bc2 {[%clk 0:02:42.7]} 10... f5 {[%clk 0:02:15.9]} 11. exf5 {[%clk 0:02:32.6]}
11... gxf5 {[%clk 0:02:16.8]} 12. Ng5 {[%clk 0:02:33.2]} 12... Nf6 {[%clk
0:02:13.7]} 13. g4 {[%clk 0:02:26]} 13... e4 {[%clk 0:02:10.3]} 14. Ne6 {[%clk
0:02:07.8]} 14... Bxe6 {[%clk 0:01:56.2]} 15. dxe6 {[%clk 0:02:08.7]} 15... fxg4
{[%clk 0:01:54.4]} 16. hxg4 {[%clk 0:02:05.1]} 16... Nc5 {[%clk 0:01:49.6]} 17.
g5 {[%clk 0:01:55]} 17... Ne8 {[%clk 0:01:43.6]} 18. Qh5 {[%clk 0:01:41.6]}
18... Bxc3+ {[%clk 0:01:42.9]} 19. bxc3 {[%clk 0:01:40.5]} 19... Qe7 {[%clk
0:01:40.8]} 20. Be3 {[%clk 0:01:29.2]} 20... Rf5 {[%clk 0:01:18.5]} 21. O-O-O
{[%clk 0:01:13]} 21... Qg7 {[%clk 0:00:58.9]} 22. Rd5 {[%clk 0:00:48.8]} 22...
Nd3+ {[%clk 0:00:36.1]} 23. Kd2 {[%clk 0:00:29.6]} 23... Rxd5 {[%clk 0:00:30]}
24. cxd5 {[%clk 0:00:27.6]} 24... c5 {[%clk 0:00:30.7]} 25. dxc6 {[%clk
0:00:22]} 25... bxc6 {[%clk 0:00:31.6]} 26. Bxd3 {[%clk 0:00:22.4]} 26... exd3
{[%clk 0:00:29.1]} 27. Bd4 {[%clk 0:00:23]} 27... Qb7 {[%clk 0:00:27.5]} 28. g6
{[%clk 0:00:16.2]} 28... Qb2+ {[%clk 0:00:25.5]} 29. Kxd3 {[%clk 0:00:16.7]}
29... Qb5+ {[%clk 0:00:18.9]} 30. Qxb5 {[%clk 0:00:16.5]} 1-0

[Event "Late-Titled-Tuesday-Blitz-September-05-2023"]
[Site "Chess.com"]
[Date "2023.09.05"]
[Round "9"]
[White "rasmussvane"]
[Black "kleinebeer98"]
[Result "0-1"]
[WhiteElo "2935"]
[BlackElo "2870"]
[TimeControl "180+1"]
[EndTime "15:45:00 PDT"]
[Termination "kleinebeer98 won by resignation"]

1. Nf3 {[%clk 0:03:00.9]} 1... d5 {[%clk 0:02:59.7]} 2. g3 {[%clk 0:02:59.6]}
2... Nc6 {[%clk 0:02:59.9]} 3. d4 {[%clk 0:02:59.5]} 3... g6 {[%clk 0:03:00.6]}
4. Bg2 {[%clk 0:02:55.7]} 4... Bg7 {[%clk 0:03:01]} 5. O-O {[%clk 0:02:56.3]}
5... Nf6 {[%clk 0:03:01.6]} 6. b3 {[%clk 0:02:39]} 6... O-O {[%clk 0:03:00.4]}
7. Bb2 {[%clk 0:02:39.4]} 7... a5 {[%clk 0:03:00.7]} 8. a3 {[%clk 0:02:26.2]}
8... a4 {[%clk 0:02:50.1]} 9. b4 {[%clk 0:02:24]} 9... Ne4 {[%clk 0:02:48.3]}
10. e3 {[%clk 0:02:21.5]} 10... b5 {[%clk 0:02:32.6]} 11. Nfd2 {[%clk
0:02:14.4]} 11... Nxd2 {[%clk 0:02:21.9]} 12. Nxd2 {[%clk 0:02:12.4]} 12... e5
{[%clk 0:02:11.7]} 13. c4 {[%clk 0:01:50.4]} 13... bxc4 {[%clk 0:02:01.1]} 14.
Nxc4 {[%clk 0:01:50.2]} 14... exd4 {[%clk 0:01:52.6]} 15. b5 {[%clk 0:01:33.7]}
15... dxc4 {[%clk 0:01:39.8]} 16. Bxc6 {[%clk 0:01:33.5]} 16... Bh3 {[%clk
0:01:28]} 17. exd4 {[%clk 0:01:25.8]} 17... Bxf1 {[%clk 0:01:23]} 18. Qxf1
{[%clk 0:01:22.4]} 18... Rb8 {[%clk 0:01:06.7]} 19. Qxc4 {[%clk 0:01:21.5]}
19... Qd6 {[%clk 0:01:05]} 20. Qxa4 {[%clk 0:01:16.8]} 20... Rfd8 {[%clk
0:01:03.2]} 21. Rd1 {[%clk 0:01:16]} 21... h5 {[%clk 0:00:51.8]} 22. Qc4 {[%clk
0:01:08.4]} 22... h4 {[%clk 0:00:52]} 23. a4 {[%clk 0:01:08.1]} 23... Re8 {[%clk
0:00:48.3]} 24. Bxe8 {[%clk 0:01:06.7]} 24... Rxe8 {[%clk 0:00:49.2]} 25. Bc1
{[%clk 0:00:42.6]} 25... h3 {[%clk 0:00:46.2]} 26. Bf4 {[%clk 0:00:38.5]} 26...
Qa3 {[%clk 0:00:46.4]} 27. Qf1 {[%clk 0:00:26.2]} 27... Qxa4 {[%clk 0:00:43]}
28. Bxc7 {[%clk 0:00:25.7]} 28... Bxd4 {[%clk 0:00:37.7]} 29. b6 {[%clk
0:00:24.3]} 29... Qc6 {[%clk 0:00:33.1]} 30. Qxh3 {[%clk 0:00:16.2]} 30... Bxf2+
{[%clk 0:00:32.9]} 31. Kxf2 {[%clk 0:00:14.4]} 31... Qc2+ {[%clk 0:00:33.6]} 32.
Kf3 {[%clk 0:00:04.9]} 32... Qe4+ {[%clk 0:00:31.5]} 33. Kf2 {[%clk 0:00:04.9]}
33... Qe2+ {[%clk 0:00:31.6]} 34. Kg1 {[%clk 0:00:05.6]} 34... Qxd1+ {[%clk
0:00:32.3]} 35. Qf1 {[%clk 0:00:05.6]} 35... Re1 {[%clk 0:00:32.1]} 36. Qxe1
{[%clk 0:00:03.6]} 36... Qxe1+ {[%clk 0:00:33]} 37. Kg2 {[%clk 0:00:04.1]} 0-1